[Event "Moscow-ch Women 2021"]
[Site "Moscow"]
[Date "2021.04.02"]
[Round "9.8"]
[White "Shvedova, Alexandra"]
[Black "Korovina, Yana"]
[Result "1-0"]
[ECO "C42"]
[WhiteElo "1997"]
[BlackElo "1531"]
[Annotator "ChessBase"]
[PlyCount "89"]
[EventDate "2021.03.25"]
[EventType "swiss"]
[EventCountry "RUS"]
[SourceTitle "playchess.com"]
[Source "ChessBase"]
[SourceQuality "1"]
[TimeControl "5400+30"]

1. e4 {[%emt 0:00:00]} e5 {[%emt 0:00:00]} 2. Nf3 {[%emt 0:00:00]} Nf6 {[%emt 0:00:00]} 3. Nxe5 {[%emt 0:00:00]} d6 {[%emt 0:00:00]} 4. Nf3 {[%emt 0:00:00]} Nxe4 {[%emt 0:00:00]} 5. Bd3 {[%emt 0:00:00]} Nf6 {[%emt 0:01:11]} 6. O-O {[%emt 0:00:05]} Be7 {[%emt 0:00:11]} 7. c3 {[%emt 0:00:42]} O-O {[%emt 0:00:19]} 8. Bc2 {[%emt 0:00:05]} Bg4 {[%emt 0:01:06]} 9. d4 {[%emt 0:00:23]} d5 {[%emt 0:02:58]} 10. Nbd2 {[%emt 0:03:15]} Nbd7 {[%emt 0:02:10]} 11. Re1 {[%emt 0:01:02]} Re8 {[%emt 0:00:40]} 12. Nf1 {[%emt 0:09:22]} Bd6 {[%emt 0:04:03]} 13. Ne3 {[%emt 0:00:47]} Bh5 {[%emt 0:03:14]} 14. Bd2 {[%emt 0:17:48]} c6 {[%emt 0:02:58]} 15. Nf5 {[%emt 0:19:55]} Rxe1+ {[%emt 0:01:30]} 16. Qxe1 {[%emt 0:00:18]} Qc7 {[%emt 0:01:20]} 17. Nxd6 {[%emt 0:01:27]} Qxd6 {[%emt 0:02:03]} 18. Ne5 {[%emt 0:00:20]} Re8 {[%emt 0:02:39]} 19. f4 {[%emt 0:04:14]} Qe6 {[%emt 0:11:17]} 20. f5 {[%emt 0:29:34]} Qe7 {[%emt 0:00:34]} 21. Bf4 {[%emt 0:01:15]} Nxe5 {[%emt 0:07:26]} 22. dxe5 {[%emt 0:00:15]} Nd7 {[%emt 0:02:08]} 23. h3 {[%emt 0:00:37]} g5 {[%emt 0:03:11]} 24. Qg3 {[%emt 0:03:30]} h6 {[%emt 0:01:16]} 25. f6 {[%emt 0:00:13]} Qe6 {[%emt 0:00:55]} 26. Bxg5 {[%emt 0:00:46]} Bg6 {[%emt 0:01:38]} 27. Bxg6 {[%emt 0:01:53]} fxg6 {[%emt 0:00:13]} 28. Bxh6 {[%emt 0:00:32]} Nxe5 {[%emt 0:01:25]} 29. Bg7 {[%emt 0:00:26]} Kf7 {[%emt 0:01:26]} 30. Qh4 {[%emt 0:01:24]} Nd3 {[%emt 0:04:34]} 31. Bh6 {[%emt 0:03:48]} Rh8 {[%emt 0:04:13]} 32. Qg5 {[%emt 0:00:25]} Qe2 {[%emt 0:02:43]} 33. Rf1 {[%emt 0:00:49]} Re8 {[%emt 0:03:33]} 34. Qg3 {[%emt 0:00:40]} Re5 {[%emt 0:01:16]} 35. h4 {[%emt 0:00:23]} b6 {[%emt 0:03:23]} 36. a4 {[%emt 0:00:42]} a6 {[%emt 0:04:35]} 37. b4 {[%emt 0:00:14]} b5 {[%emt 0:04:40]} 38. axb5 {[%emt 0:00:03]} cxb5 {[%emt 0:00:11]} 39. Bg5 {[%emt 0:00:17]} Qe4 {[%emt 0:02:36]} 40. Bd2 {[%emt 0:01:23]} d4 {[%emt 0:01:17]} 41. h5 {[%emt 0:00:23]} dxc3 {[%emt 0:01:19]} 42. hxg6+ {[%emt 0:00:07]} Qxg6 {[%emt 0:00:42]} 43. Qxg6+ {[%emt 0:00:19]} Kxg6 {[%emt 0:00:05]} 44. f7 {[%emt 0:00:10]} cxd2 {[%emt 0:00:52]} 45. f8=Q {[%emt 0:00:06]} 1-0

[Event "Moscow-ch Women 2021"]
[Site "Moscow"]
[Date "2021.04.02"]
[Round "9.9"]
[White "Cherepanova, Evita"]
[Black "Gerasimova, Maria V."]
[Result "1-0"]
[ECO "C04"]
[WhiteElo "1621"]
[BlackElo "1166"]
[Annotator "NA"]
[PlyCount "67"]
[EventDate "2021.03.25"]
[EventType "swiss"]
[EventCountry "RUS"]
[SourceTitle "playchess.com"]
[Source "ChessBase"]
[SourceQuality "1"]
[TimeControl "5400+30"]

1. e4 {[%emt 0:05:53]} e6 {[%emt 0:00:05]} 2. d4 {[%emt 0:00:02]} d5 {[%emt 0:00:21]} 3. Nd2 {[%emt 0:00:02]} Nc6 {[%emt 0:00:17]} 4. Ngf3 {[%emt 0:00:25]} Nf6 {[%emt 0:00:24]} 5. e5 {[%emt 0:01:28]} Nd7 {[%emt 0:00:07]} 6. c3 {[%emt 0:00:43]} f6 {[%emt 0:00:41]} 7. exf6 {[%emt 0:01:55]} Nxf6 {[%emt 0:01:45]} 8. Bd3 {[%emt 0:01:28]} Bd6 {[%emt 0:02:09]} 9. O-O {[%emt 0:00:12]} O-O {[%emt 0:00:55]} 10. Re1 {[%emt 0:00:21]} Re8 {[%emt 0:00:38]} 11. Ne5 {[%emt 0:00:52]} Bxe5 {[%emt 0:04:16]} 12. dxe5 {[%emt 0:00:08]} Nd7 {[%emt 0:00:04]} 13. Nf3 {[%emt 0:02:19]} h6 {[%emt 0:01:00]} 14. Bf4 {[%emt 0:02:45]} Rf8 {[%emt 0:01:16]} 15. Bg3 {[%emt 0:00:12]} Qe8 {[%emt 0:08:11]} 16. Qc2 {[%emt 0:01:06]} Ne7 {[%emt 0:00:49]} 17. Nh4 {[%emt 0:01:14]} Nc5 {[%emt 0:02:38]} 18. Bh7+ {[%emt 0:00:18]} Kh8 {[%emt 0:00:12]} 19. Bg6 {[%emt 0:01:19]} Qb5 {[%emt 0:03:17]} 20. a4 {[%emt 0:02:49]} Qb3 {[%emt 0:00:58]} 21. Qe2 {[%emt 0:00:41]} Qc4 {[%emt 0:01:19]} 22. Qh5 {[%emt 0:05:46]} Bd7 {[%emt 0:02:10]} 23. Rad1 {[%emt 0:00:32]} Bxa4 {[%emt 0:00:58]} 24. Rd4 {[%emt 0:00:05]} Qb3 {[%emt 0:07:16]} 25. Bf4 {[%emt 0:00:47]} Nxg6 {[%emt 0:07:25]} 26. Nxg6+ {[%emt 0:00:07]} Kh7 {[%emt 0:01:50]} 27. Nxf8+ {[%emt 0:00:18]} Rxf8 {[%emt 0:00:10]} 28. Bxh6 {[%emt 1:10:13]} Rf5 {[%emt 0:02:04]} 29. Bg5+ {[%emt 0:00:00]} Kg8 {[%emt 0:01:36]} 30. Rh4 {[%emt 0:00:00]} Qxb2 {[%emt 0:01:41]} 31. Qh8+ {[%emt 0:00:00]} Kf7 {[%emt 0:00:32]} 32. Be3 {[%emt 0:00:00]} Nd3 {[%emt 0:04:34]} 33. Rf1 {[%emt 0:00:00]} Bb5 {[%emt 0:00:37]} 34. Rh7 {[%emt 0:00:00]} 1-0

[Event "Moscow-ch Women 2021"]
[Site "Moscow"]
[Date "2021.04.02"]
[Round "9.10"]
[White "Shevtsova, Stefania"]
[Black "Mayorova, Varvara"]
[Result "1-0"]
[ECO "B22"]
[WhiteElo "1654"]
[BlackElo "1446"]
[Annotator "NA"]
[PlyCount "81"]
[EventDate "2021.03.25"]
[EventType "swiss"]
[EventCountry "RUS"]
[SourceTitle "playchess.com"]
[Source "ChessBase"]
[SourceQuality "1"]
[TimeControl "5400+30"]

1. e4 {[%emt 1:30:30]} c5 {[%emt 0:02:31]} 2. c3 {[%emt 0:00:00]} d5 {[%emt 0:00:07]} 3. exd5 {[%emt 0:00:00]} Qxd5 {[%emt 0:00:27]} 4. d4 {[%emt 0:00:00]} Nf6 {[%emt 0:00:37]} 5. Nf3 {[%emt 0:00:00]} Bg4 {[%emt 0:00:08]} 6. Nbd2 {[%emt 0:00:00]} cxd4 {[%emt 0:01:41]} 7. cxd4 {[%emt 0:00:00]} Nc6 {[%emt 0:00:27]} 8. h3 {[%emt 0:00:00]} Bh5 {[%emt 0:04:59]} 9. Qa4 {[%emt 0:00:00]} e6 {[%emt 0:09:44]} 10. Bc4 {[%emt 0:00:00]} Qa5 {[%emt 0:05:12]} 11. Qxa5 {[%emt 0:00:00]} Nxa5 {[%emt 0:00:06]} 12. Bb5+ {[%emt 0:00:00]} Kd8 {[%emt 0:02:30]} 13. g4 {[%emt 0:00:00]} Bg6 {[%emt 0:00:22]} 14. Ne5 {[%emt 0:00:00]} Bd6 {[%emt 0:01:00]} 15. f4 {[%emt 0:00:00]} Ke7 {[%emt 0:01:06]} 16. O-O {[%emt 0:00:00]} a6 {[%emt 0:01:16]} 17. Be2 {[%emt 0:00:00]} Bc2 {[%emt 0:01:55]} 18. b3 {[%emt 0:00:00]} h6 {[%emt 0:01:49]} 19. Bb2 {[%emt 0:00:00]} Rac8 {[%emt 0:02:07]} 20. Rac1 {[%emt 0:00:00]} Bh7 {[%emt 0:01:05]} 21. Ndc4 {[%emt 0:00:00]} Nxc4 {[%emt 0:06:15]} 22. bxc4 {[%emt 0:00:00]} b6 {[%emt 0:01:24]} 23. Rf3 {[%emt 0:00:00]} Be4 {[%emt 0:01:20]} 24. Rb3 {[%emt 0:00:00]} Rb8 {[%emt 0:02:13]} 25. c5 {[%emt 0:00:00]} Bxe5 {[%emt 0:04:45]} 26. dxe5 {[%emt 0:00:00]} Nd5 {[%emt 0:00:48]} 27. cxb6 {[%emt 0:00:47]} Rhd8 {[%emt 0:04:17]} 28. Ba3+ {[%emt 0:01:36]} Ke8 {[%emt 0:02:46]} 29. Bxa6 {[%emt 0:00:22]} Nxb6 {[%emt 0:01:23]} 30. Bd6 {[%emt 0:01:11]} Bd5 {[%emt 0:03:11]} 31. Rb2 {[%emt 0:01:19]} Nd7 {[%emt 0:01:06]} 32. Bxb8 {[%emt 0:00:27]} Nxb8 {[%emt 0:00:20]} 33. Bb7 {[%emt 0:01:32]} f6 {[%emt 0:00:57]} 34. Bxd5 {[%emt 0:00:16]} exd5 {[%emt 0:00:12]} 35. Rb7 {[%emt 0:01:07]} fxe5 {[%emt 0:00:41]} 36. fxe5 {[%emt 0:00:07]} Nd7 {[%emt 0:00:13]} 37. Rcc7 {[%emt 0:00:46]} d4 {[%emt 0:01:00]} 38. e6 {[%emt 0:02:04]} Ne5 {[%emt 0:00:09]} 39. Rxg7 {[%emt 0:00:34]} Kf8 {[%emt 0:00:17]} 40. e7+ {[%emt 0:00:07]} Kxg7 {[%emt 0:00:35]} 41. exd8=Q+ {[%emt 0:00:10]} 1-0